fUST/lending_fUST_20260212
["ID","MTS","AMOUNT","RATE_DAILY","PERIOD"]
[405105757,1770828638975,-4712.01625066,0.00036877,3]
[405105758,1770828638985,-3334.49226885,0.00036877,3]
[405105759,1770828638995,-2194.7769489,0.00036878,2]
[405105760,1770828639006,-8534.24477244,0.000369,2]
[405105761,1770828639016,-1448.1620013,0.00036938,2]
[405105762,1770828639027,-151.30633421,0.00036968,2]
[405105763,1770828639036,-168.0,0.00036972,2]
[405105764,1770828639054,-1182.2768868,0.00036988,2]
[405105765,1770828639063,-194709.77577746,0.00037,2]
[405106057,1770828756110,184660.0,0.00023,2]
[405106064,1770828984742,428.40030386,0.000189,2]
[405106066,1770829144216,500.0,0.00013699,2]
[405106067,1770829144276,1000.0,0.00014247,2]
[405106068,1770829149273,300.0,0.00013673,2]
[405106069,1770829149327,600.0,0.00014221,2]
[405106071,1770829219784,272.1243143,0.00013699,2]
[405106072,1770829288221,325.60666149,0.00013273,2]
[405106073,1770829310305,500.0,0.00013699,2]
[405106074,1770829310348,1000.0,0.00014247,2]
[405106077,1770829576984,500.0,0.00013273,2]
[405106079,1770829632092,-274.8218715,0.00025597,2]
[405106080,1770829640702,300.0,0.00013673,2]
[405106081,1770829643079,-1022.70872775,0.00025597,2]
[405106082,1770829643113,-521.63966767,0.00025597,2]
[405106083,1770829643134,-464.91417956,0.00025856,2]
[405106084,1770829747102,-948.5013974,0.00024953,2]
[405106085,1770829747126,-150.0,0.00025079,2]
[405106086,1770829747146,-30.98294804,0.00025856,2]
[405106087,1770829747166,-177.0,0.00027079,2]
[405106088,1770829747191,-204.0,0.00029079,2]
[405106089,1770829747210,-443.96093616,0.0003,7]
[405106090,1770829747235,-500.0,0.00030926,2]
[405106103,1770829832163,-248.32819122,0.00031589,14]
[405106104,1770829832173,-500.0,0.00031738,2]
[405106105,1770829832183,-1715.969934,0.00032596,2]
[405106106,1770829832193,-500.0,0.00032819,7]
[405106107,1770829832202,-400.0,0.00033057,3]
[405106108,1770829832212,-400.0,0.00033057,3]
[405106109,1770829832223,-400.0,0.00033057,2]
[405106110,1770829832235,-3111.7911456,0.00033058,2]
[405106111,1770829832246,-183.0314583,0.000332,117]
[405106113,1770829832256,-722.0,0.00033405,2]
[405106115,1770829832265,-225.37125575,0.00033405,2]
[405106117,1770829832275,-216.17844253,0.00033553,2]
[405106119,1770829832287,-465.32505853,0.00033553,2]
[405106121,1770829832296,-77.67494147,0.00033968,2]
[405106123,1770829832308,-670.94,0.00033968,2]
[405106158,1770829838327,-967.35499253,0.00033968,2]
[405106160,1770829838337,-500.0,0.00034165,7]
[405106162,1770829838347,-500.0,0.00035259,7]
[405106164,1770829838357,-214.42435926,0.00035259,7]
[405106166,1770829838367,-1715.969934,0.00035341,2]
[405106168,1770829838376,-560.0,0.00035516,2]
[405106170,1770829838386,-160.0,0.00035833,3]
[405106172,1770829838395,-546.0,0.00036219,3]
[405106175,1770829838404,-741.48751943,0.00036272,2]
[405106177,1770829838414,-248.818,0.00036405,2]
[405106179,1770829838424,-458.0,0.00036456,30]
[405106181,1770829838433,-311.45233602,0.0003653,2]
[405106183,1770829838442,-355.58958136,0.0003653,2]
[405106192,1770829838552,-380.7316679,0.0003653,2]
[405106193,1770829838562,-259.43117642,0.0003653,2]
[405106194,1770829838571,-466.97611755,0.0003653,2]
[405106195,1770829838581,-830.17976453,0.0003653,2]
[405106196,1770829838590,-1450.2594841,0.0003653,2]
[405106197,1770829838599,-580.08629746,0.0003653,2]
[405106198,1770829838609,-906.38483978,0.00036581,2]
[405106199,1770829838618,-296.70774908,0.00036581,2]
[405106200,1770829838628,-274.59904306,0.00036581,2]
[405106201,1770829838637,-494.27827751,0.00036581,2]
[405106202,1770829838647,-878.7169378,0.00036581,2]
[405106203,1770829838656,-1372.99521531,0.00036581,2]
[405106204,1770829838667,-1975.13599694,0.00036581,2]
[405106205,1770829838676,-1837.2543744,0.0003659,2]
[405106206,1770829838686,-157.8484125,0.0003659,2]
[405106207,1770829838695,-2032.4816999,0.0003659,2]
[405106208,1770829838704,-2000.0,0.00036603,2]
[405106209,1770829838714,-1715.969934,0.00036713,2]
[405106210,1770829838723,-1295.8587262,0.00036714,2]
[405106211,1770829838732,-151.0,0.00036878,2]
[405106212,1770829838742,-151.0,0.00036878,2]
[405106213,1770829838752,-151.0,0.00036878,2]
[405106214,1770829838761,-151.0,0.00036878,2]
[405106215,1770829838771,-151.0,0.00036878,2]
[405106216,1770829838780,-151.0,0.00036878,2]
[405106217,1770829838790,-151.0,0.00036878,2]
[405106218,1770829838799,-151.0,0.00036878,2]
[405106219,1770829838809,-151.0,0.00036878,2]
[405106220,1770829838819,-151.0,0.00036878,2]
[405106221,1770829838830,-151.0,0.00036878,2]
[405106222,1770829838839,-157.57875625,0.00036878,2]
[405106223,1770829838849,-35557.61,0.000369,5]
[405106224,1770829838859,-597.16270482,0.00036967,3]
[405106225,1770829838868,-367.82071859,0.00036967,3]
[405106226,1770829838878,-912.62341498,0.00036967,3]
[405106227,1770829838887,-521.11797057,0.00036967,3]
[405106228,1770829838897,-417.12,0.0003699,3]
[405106229,1770829838906,-2180.19,0.0003699,10]
[405106230,1770829838916,-3767.36,0.0003699,10]
[405106231,1770829838925,-3139.47,0.0003699,10]
[405106232,1770829838934,-8482.7637634,0.0003699,3]
[405106233,1770829838944,-155.0,0.00036999,2]
[405106234,1770829838954,-57529.58802112,0.00037,2]
[405106235,1770829838967,-25850.22561924,0.00037,2]
[405106281,1770829845340,-383.21896696,0.00036581,2]
[405106282,1770829845349,-2000.0,0.00036603,2]
[405106283,1770829845359,-2616.22,0.0003699,10]
[405106284,1770829845369,-14962.10211859,0.00037,2]
[405106326,1770829880926,500.0,0.00013699,2]
[405106327,1770829883345,502.12608633,0.00013699,2]
[405106328,1770829883484,223.41139038,0.00013699,2]
[405106329,1770829883774,327.05927597,0.00021918,2]
[405106331,1770830116942,500.0,0.00013699,2]
[405106334,1770830199281,500.0,0.00013273,2]
[405106346,1770830403828,394.71699989,0.00013273,2]
[405106347,1770830407272,432.71226974,0.00013699,2]
[405106351,1770830467670,500.0,0.00013273,2]
[405106354,1770830707476,150.0,0.00017808,2]
[405106355,1770830707527,250.0,0.00018356,2]
[405106356,1770830707582,312.19351703,0.00018904,2]
[405106357,1770830709625,500.0,0.00013699,2]
[405106358,1770830713202,502.48437183,0.00013699,2]
[405106359,1770830713908,501.32458675,0.00013699,2]
[405106360,1770830720982,505.78282375,0.00013273,2]
[405106361,1770830721409,500.0,0.00013273,2]
[405106362,1770830721437,500.0,0.00013821,2]
[405106363,1770830722102,500.0,0.00013273,2]
[405106364,1770830724052,449.39943505,0.00013699,2]
[405106366,1770830726709,500.0,0.00013699,2]
[405106367,1770830729581,504.50657521,0.00013699,2]
[405106369,1770830793099,502.34825397,0.00013699,2]
[405106370,1770830825738,500.0,0.00013273,2]
[405106371,1770830829604,500.0,0.00013699,2]
[405106372,1770830830750,500.0,0.00013699,2]
[405106373,1770830831534,504.76033442,0.00013699,2]
[405106374,1770830831950,500.0,0.00013273,2]
[405106376,1770830833846,503.86963239,0.00013699,2]
[405106377,1770830836118,-500.0,0.00026999,2]
[405106378,1770830836161,-300.0,0.00027319,2]
[405106379,1770830836182,-300.0,0.00027319,2]
[405106380,1770830836203,-166.0,0.00029397,14]
[405106381,1770830836224,-420.0,0.00029525,2]
[405106382,1770830836244,-4.04451125,0.0003,14]
[405106383,1770830836535,503.6954193,0.00013699,2]
[405106384,1770830837905,543.10536522,0.00013699,2]
[405106385,1770830850644,388.80744541,0.00013699,2]
[405106389,1770830907594,10114.01185437,0.0003,120]
[405106392,1770830947180,502.37245033,0.00013273,2]
[405106393,1770830947203,-311.37745386,0.00024,14]
[405106394,1770830947223,-287.78254614,0.0002465,2]
[405106395,1770830947243,-69.9371039,0.00025469,3]
[405106396,1770830947613,500.0,0.00013273,2]
[405106397,1770830948064,209.373,0.00013273,2]
[405106398,1770830948088,290.627,0.00013273,2]
[405106399,1770830953230,500.0,0.00013273,2]
[405106401,1770830963108,-272.87958334,0.00025469,3]
[405106402,1770830963130,-651.83260993,0.00025583,3]
[405106403,1770830963151,-1096.76753945,0.00025925,3]
[405106404,1770830963171,-1541.70246897,0.00026659,3]
[405106405,1770830963191,-1986.63739849,0.00027393,3]
[405106406,1770830963211,-300.0,0.00028126,2]
[405106407,1770830963231,-2431.57232801,0.00028127,3]
[405106408,1770830963259,-2876.50725753,0.00028861,3]
[405106409,1770830963280,-3321.44218705,0.00029595,3]
[405106410,1770830963301,-146.95548875,0.0003,14]
[405106411,1770830963321,-3729.24301528,0.0003033,3]
[405106412,1770830963343,-420.0,0.00030372,2]
[405106413,1770830963363,-2597.20845593,0.00031064,3]
[405106414,1770831009145,453.41808127,0.00013699,2]
[405106415,1770831009171,46.58191873,0.00013699,2]
[405106416,1770831009200,442.19195408,0.00014247,2]
[405106417,1770831012314,500.44142396,0.00013273,2]
[405106418,1770831016572,500.9926802,0.00013273,2]
[405106419,1770831022345,504.00280883,0.00013273,2]
[405106420,1770831023789,615.2181365,0.00013273,2]
[405106430,1770831032375,-476.89946999,0.00025583,3]
[405106431,1770831032384,-802.96460303,0.00026038,3]
[405106432,1770831032394,-1129.02973607,0.00026886,3]
[405106433,1770831032403,-1095.41241741,0.00027733,3]
[405106748,1770831038481,-359.6824517,0.00027733,3]
[405106749,1770831038492,-1781.16000215,0.00028581,3]
[405106750,1770831038502,-2107.22513519,0.00029428,3]
[405106751,1770831038512,-2433.29026824,0.00030276,3]
[405106752,1770831038521,-1428.43308368,0.00031064,3]
[405106753,1770831038531,-2650.5023095,0.00031123,3]
[405106754,1770831038541,-4322.04006394,0.00031798,3]
[405106755,1770831038552,-2867.71435076,0.00031971,3]
[405106756,1770831038564,-221.0,0.00032531,3]
[405106757,1770831038575,-4618.43858827,0.00032532,3]
[405106759,1770831038585,-2667.86650656,0.00032819,3]
[405106762,1770831038597,-417.05988546,0.00032819,3]
[405106765,1770831038608,-200.0,0.00033118,2]
[405106767,1770831038618,-4914.8371126,0.00033266,3]
[405106769,1770831038630,-3302.13843328,0.00033666,3]
[405106771,1770831038640,-3998.36707157,0.000338,2]
[405106773,1770831038650,-5211.23563693,0.00034,3]
[405106774,1770831038661,-500.0,0.00034115,2]
[405106775,1770831038670,-3519.35047454,0.00034514,3]
[405106776,1770831038680,-1997.7130888,0.00034625,2]
[405106777,1770831038689,-742.38915205,0.00034682,2]
[405106778,1770831038700,-5507.63416126,0.00034734,3]
[405106779,1770831038709,-2180.19,0.00034888,10]
[405106780,1770831038719,-1816.82,0.00034888,10]
[405106781,1770831038729,-280205.4830418,0.00034898,2]
[405106782,1770831038738,-3736.5625158,0.00035361,3]
[405106783,1770831038747,-5768.07520633,0.00035468,3]
[405106784,1770831038757,-807.109,0.0003568,2]
[405106785,1770831038767,-1390.762,0.0003568,2]
[405106786,1770831038776,-633.0,0.0003568,2]
[405106787,1770831038786,-180.0,0.0003568,2]
[405106788,1770831038795,-153.446,0.0003568,2]
[405106789,1770831038805,-5992.55877214,0.00036202,3]
[405106790,1770831038815,-3901.07255737,0.00036209,3]
[405106791,1770831038825,-2000.0,0.00036603,2]
[405106792,1770831038835,-18148.72275963,0.00036717,2]
[405106793,1770831038844,-179.0,0.00036918,2]
[405106794,1770831038853,-6217.04233795,0.00036936,3]
[405106795,1770831038863,-232.689232,0.00036978,2]
[405106796,1770831038872,-1000.0,0.00036986,5]
[405106797,1770831038882,-500.0,0.00036989,2]
[405106798,1770831038892,-584.08,0.00036999,2]
[405106799,1770831038902,-10955.47380944,0.00037,2]
[405106800,1770831038911,-4613.81181498,0.00037,2]
[405106805,1770831040641,-20021.74412904,0.00037,2]
[405106806,1770831041941,-158968.79198994,0.00037,2]
[405106834,1770831065780,500.0,0.00013699,2]
[405106835,1770831067442,560.9187124,0.00013699,2]
[405106836,1770831069072,500.0,0.00013273,2]
[405106837,1770831069123,964.6589018,0.00013821,2]
[405106838,1770831069312,500.0,0.00013699,2]
[405106839,1770831069342,500.0,0.00013699,2]
[405106840,1770831069370,504.94312397,0.00014247,2]
[405106841,1770831070111,500.0,0.00013699,2]
[405106842,1770831070915,500.0,0.00013273,2]
[405106843,1770831070958,502.69791191,0.00013821,2]
[405106844,1770831071222,500.0,0.00013273,2]
[405106845,1770831072060,500.0,0.00013273,2]
[405106846,1770831072119,500.0,0.00013821,2]
[405106847,1770831073243,471.94008407,0.00013699,2]
[405106848,1770831073457,500.0,0.00013273,2]
[405106849,1770831073535,500.0,0.00013273,2]
[405106850,1770831073591,1000.0,0.00013821,2]
[405106851,1770831073650,1000.0,0.00014368,2]
[405106852,1770831075136,503.22840512,0.00013699,2]
[405106853,1770831075330,186.26964061,0.00013273,2]
[405106854,1770831086372,501.48389838,0.00013273,2]
[405106855,1770831094371,500.0,0.00013699,2]
[405106856,1770831094419,1000.0,0.00014247,2]
[405106857,1770831125964,500.0,0.00013699,2]
[405106858,1770831126019,470.91512537,0.00014247,2]
[405106859,1770831130177,345.32992802,0.00013699,2]
[405106860,1770831133114,376.50246292,0.00013273,2]
[405106861,1770831133848,500.0,0.00013699,2]
[405106862,1770831134002,1000.0,0.00014247,2]
[405106863,1770831134312,500.0,0.00013273,2]
[405106864,1770831134351,1000.0,0.00013821,2]
[405106865,1770831134402,500.0,0.00014368,2]
[405106866,1770831134598,500.0,0.00013273,2]
[405106867,1770831134666,500.0,0.00013821,2]
[405106868,1770831134711,403.75028997,0.00013273,2]
[405106869,1770831136637,500.0,0.00013273,2]
[405106870,1770831174900,-1566.96872431,0.00030137,120]
[405106871,1770831183861,500.0,0.00013273,2]
[405106872,1770831183918,503.9622496,0.00013821,2]
[405106873,1770831184120,619.07421439,0.00013699,2]
[405106874,1770831204218,-554.02924532,0.00030137,120]
[405106875,1770831204230,-208.18656275,0.00030137,120]
[405106876,1770831204240,-500.0,0.00031063,5]
[405106877,1770831226336,303.10001603,0.000189,2]
[405106878,1770831226368,152.06974462,0.00019089,2]
[405106881,1770831303964,501.34318596,0.00013273,2]
[405106882,1770831312934,502.08236014,0.00013699,2]
[405106883,1770831320329,500.0,0.00013273,2]
[405106884,1770831321820,500.0,0.00013273,2]
[405106885,1770831321874,501.86881313,0.00013821,2]
[405106886,1770831326057,211.57791333,0.00013273,2]
[405106887,1770831328857,500.0,0.00013699,2]
[405106888,1770831328908,500.0,0.00014247,2]
[405106889,1770831329630,544.70353747,0.00013699,2]
[405106890,1770831330333,500.0,0.00013273,2]
[405106891,1770831335466,500.0,0.00013699,2]
[405106892,1770831336406,164.3280633,0.00013973,2]
[405106893,1770831368981,501.45181418,0.00013699,2]
[405106894,1770831370353,500.0,0.00013273,2]
[405106895,1770831370396,664.79232933,0.00013821,2]
[405106896,1770831370561,500.0,0.00013699,2]
[405106897,1770831373552,500.71191812,0.00013273,2]
[405106898,1770831373721,501.34685382,0.00013699,2]
[405106901,1770831376910,500.0,0.00013699,2]
[405106902,1770831377057,341.0610323,0.00014247,2]
[405106903,1770831377742,500.0,0.00013273,2]
[405106904,1770831377795,1000.0,0.00013821,2]
[405106905,1770831377855,1000.0,0.00014368,2]
[405106906,1770831394369,500.0,0.00013699,2]
[405106907,1770831394433,505.96949463,0.00014247,2]
[405106908,1770831394493,501.50826125,0.00013699,2]
[405106909,1770831394563,541.70062063,0.00013699,2]
[405106910,1770831394995,500.0,0.00013273,2]
[405106911,1770831395029,500.0,0.00013273,2]
[405106912,1770831395074,1000.0,0.00013821,2]
[405106913,1770831395130,500.0,0.00014368,2]
[405106914,1770831423965,501.56442921,0.00013699,2]
[405106915,1770831424230,503.2118958,0.00013699,2]
[405106916,1770831424381,361.13333414,0.00013273,2]
[405106917,1770831427552,491.1711372,0.00013273,2]
[405106918,1770831430019,500.0,0.00013273,2]
[405106919,1770831430094,1000.0,0.00013821,2]
[405106920,1770831430124,353.6239305,0.00014368,2]
[405106921,1770831430341,500.0,0.00013699,2]
[405106922,1770831431488,500.0,0.00013699,2]
[405106923,1770831431533,301.08055174,0.00014247,2]
[405106924,1770831432931,500.0,0.00013273,2]
[405106925,1770831437611,500.0,0.00013699,2]
[405106926,1770831441216,500.0,0.00013699,2]
[405106927,1770831441266,500.0,0.00014247,2]
[405106928,1770831441835,158.92261415,0.00013699,2]
[405106930,1770831543201,503.68303755,0.00013699,2]
[405106931,1770831556715,500.0,0.00013699,2]
[405106932,1770831556751,160.10365424,0.00014247,2]
[405106934,1770831606672,500.0,0.00013699,2]
[405106935,1770831606726,341.0610323,0.00014247,2]
[405106936,1770831610955,500.0,0.00013273,2]
[405106937,1770831611109,1000.0,0.00013821,2]
[405106938,1770831612540,300.0,0.00013673,2]
[405106939,1770831612657,500.0,0.00013699,2]
[405106940,1770831663658,501.61844815,0.00013699,2]
[405106941,1770831664863,500.0,0.00013273,2]
[405106942,1770831664910,500.0,0.00013273,2]
[405106943,1770831664952,1000.0,0.00013821,2]
[405106944,1770831664994,526.91838931,0.00014368,2]
[405106945,1770831665591,500.0,0.00013699,2]
[405106946,1770831666766,150.0,0.00017808,2]
[405106947,1770831666798,500.0,0.00013699,2]
[405106948,1770831666827,350.0,0.00018356,2]
[405106949,1770831666855,659.1472787,0.00014247,2]
[405106950,1770831667646,503.49981196,0.00013273,2]
[405106951,1770831668578,500.0,0.00013699,2]
[405106952,1770831668613,500.0,0.00013699,2]
[405106953,1770831668668,504.7236701,0.00014247,2]
[405106954,1770831669964,500.0,0.00013699,2]
[405106955,1770831670014,504.78667089,0.00014247,2]
[405106956,1770831677800,-478.39104371,0.00024131,2]
[405106957,1770831725318,500.0,0.00013273,2]
[405106958,1770831725366,721.60613705,0.00013821,2]
[405106959,1770831726363,500.0,0.00013699,2]
[405106960,1770831729539,500.0,0.00013273,2]
[405106961,1770831729570,1000.0,0.00013821,2]
[405106962,1770831730535,499.99,0.00013699,2]
[405106963,1770831732176,300.0,0.00013673,2]
[405106964,1770831732372,961.74632259,0.00014368,2]
[405106965,1770831734039,500.0,0.00013699,2]
[405106966,1770831735532,500.0,0.00013273,2]
[405106967,1770831735581,1000.0,0.00013821,2]
[405106968,1770831857050,5000.0,0.00023511,2]
[405106969,1770831857620,-287.78254614,0.0002389,2]
[405106970,1770831861394,-499.99956582,0.0002389,2]
[405106971,1770831864152,-160.00577039,0.0002389,2]
[405106972,1770831865028,1744.17895128,0.00023511,2]
[405106973,1770831865735,-249.35732485,0.0002389,2]
[405106974,1770831867224,-549.51467285,0.0002389,2]
[405106975,1770831870472,-809.62267868,0.0002389,2]
[405106976,1770831879709,5000.0,0.00023511,2]
[405106977,1770831887770,1768.50044677,0.00023511,2]
[405106978,1770831903170,5000.0,0.00023511,2]
[405106979,1770831904242,535.02774418,0.00013699,2]
[405106980,1770831913277,500.0,0.00013699,2]
[405106981,1770831924798,465.07448352,0.00023511,2]
[405106982,1770831926061,300.0,0.00013673,2]
[405106983,1770831944115,-221.72792885,0.0002389,2]
[405106984,1770831944232,-150.0,0.00024192,2]
[405106985,1770831944256,-666.2126967,0.00024493,3]
[405106986,1770831946126,-50.45476,0.00024493,3]
[405106987,1770831946149,-264.37689154,0.00025024,3]
[405106989,1770831965373,400.87184058,0.00013273,2]
[405106990,1770831966489,637.70788817,0.00013273,2]
[405106991,1770831967026,607.22203791,0.00013699,2]
[405106992,1770831967074,503.43455699,0.00013699,2]
[405106993,1770831967887,500.0,0.00013699,2]
[405106994,1770831968192,151.64910486,0.00013673,2]
[405106995,1770831970216,500.0,0.00013273,2]
[405106996,1770831970271,1000.0,0.00013821,2]
[405106997,1770831970323,500.0,0.00014368,2]
[405106998,1770831974502,501.60003168,0.00013699,2]
[405106999,1770831979672,500.0,0.00013699,2]
[405107000,1770831979705,332.93679327,0.00014247,2]
[405107001,1770832008080,-298.46399934,0.00025024,3]
[405107002,1770832023185,221.30706579,0.00013699,2]
[405107003,1770832023347,500.0,0.00013699,2]
[405107004,1770832029082,-656.24538021,0.00025024,3]
[405107005,1770832029104,-1721.50508549,0.00025909,3]
[405107006,1770832029125,-197.73525728,0.0002593,2]
[405107007,1770832029152,-511.42504816,0.0002593,2]
[405107008,1770832147095,-290.92,0.00024924,2]
[405107009,1770832162401,199.08,0.00024953,2]
[405107010,1770832165113,-1762.57516218,0.00024953,2]
[405107011,1770832165133,-184.27697,0.00026027,30]
[405107012,1770832165152,-177.0,0.00026192,2]
[405107013,1770832165170,-336.47348,0.00026295,30]
[405107014,1770832165187,-904.7841637,0.00026355,2]
[405107015,1770832165205,-194.0,0.00026793,2]
[405107016,1770832165223,-300.0,0.00026793,2]
[405107017,1770832165242,-300.0,0.00026793,2]
[405107018,1770832165259,-300.0,0.00026793,2]
[405107019,1770832165278,-300.0,0.00026793,2]
[405107020,1770832165299,-2223.92389988,0.00026794,3]
[405107021,1770832165319,-200.0,0.00027397,2]
[405107022,1770832165338,-2726.34271428,0.00027679,3]
[405107023,1770832165357,-204.0,0.00028192,2]
[405107024,1770832165377,-3228.76152867,0.00028564,3]
[405107025,1770832165396,-9898.50499285,0.00028854,2]
[405107026,1770832165415,-420.0,0.00028972,2]
[405107027,1770832165434,-3731.18034307,0.00029449,3]
[405107028,1770832165454,-231.0,0.00030192,2]
[405107029,1770832165474,-2328.42673569,0.00030334,3]
[405107030,1770832206550,500.0,0.00013273,2]
[405107031,1770832206602,1000.0,0.00013821,2]
[405107052,1770832231501,-150.0,0.0002589,2]
[405107054,1770832231510,-258.0,0.0002789,2]
[405107055,1770832231521,-311.62779978,0.00030591,2]
[405107137,1770832237707,-331.24079622,0.00030591,2]
[405107138,1770832237717,-943.0,0.00030591,2]
[405107139,1770832237727,-229.0,0.00031218,2]
[405107140,1770832237736,-500.0,0.0003197,2]
[405107141,1770832237745,-218.56259577,0.000332,117]
[405107142,1770832237755,-218.56259577,0.000332,117]
[405107143,1770832237763,-500.0,0.00033799,2]
[405107145,1770832237773,-218.56259577,0.00034196,120]
[405107146,1770832237782,-232.689232,0.00034548,2]
[405107147,1770832237791,-3824.04687343,0.00034787,2]
[405107148,1770832237800,-500.0,0.00034887,2]
[405107149,1770832237809,-500.0,0.00034897,2]
[405107150,1770832237819,-500.0,0.00034897,2]
[405107151,1770832237828,-500.0,0.00034897,2]
[405107152,1770832237838,-336.32,0.00034897,2]
[405107153,1770832237847,-894.12080024,0.00035062,2]
[405107154,1770832237856,-168.0,0.00035281,2]
[405107155,1770832237865,-733.6941494,0.00035495,2]
[405107156,1770832237874,-168.03,0.000355,120]
[405107157,1770832237884,-807.109,0.00035717,2]
[405107158,1770832237893,-1390.762,0.00035717,2]
[405107159,1770832237902,-633.0,0.00035717,2]
[405107160,1770832237911,-3824.04687336,0.00035898,2]
[405107161,1770832237920,-2000.0,0.00036603,2]
[405107162,1770832237929,-8009.48785111,0.00036612,2]
[405107163,1770832237938,-401.0,0.00036628,11]
[405107164,1770832237947,-401.0,0.00036672,11]
[405107165,1770832237956,-1090.18638403,0.0003689,3]
[405107166,1770832237965,-500.0,0.00036899,2]
[405107167,1770832237974,-712.0,0.00036948,11]
[405107168,1770832237987,-168.0,0.00036951,2]
[405107169,1770832237996,-1000.0,0.00036986,5]
[405107170,1770832238005,-480.68,0.0003699,3]
[405107171,1770832238015,-7890.4827946,0.0003699,3]
[405107172,1770832238027,-640.44935811,0.0003699,3]
[405107173,1770832238039,-12182.60914389,0.0003699,3]
[405107174,1770832238048,-537101.13758614,0.00037,2]
[405107175,1770832238062,-122737.81998025,0.00037,2]
[405107176,1770832238071,-4765.26650248,0.00037,2]
[405107183,1770832239824,-3e-08,0.00036422,2]
[405107214,1770832244053,-742.38915202,0.00036422,2]
[405107215,1770832244187,-2775.65543344,0.00037,2]
[405107223,1770832263442,357.66527031,0.00013699,2]
[405107224,1770832264342,461.38906887,0.00013699,2]
[405107225,1770832264508,500.0,0.00021918,2]
[405107226,1770832264550,201.32189921,0.00023288,2]
[405107227,1770832266523,500.0,0.00013273,2]
[405107228,1770832266639,500.0,0.00013821,2]
[405107229,1770832268447,500.0,0.00013699,2]
[405107230,1770832276031,500.0,0.00013699,2]
[405107232,1770832323636,209.54708386,0.00013273,2]
[405107233,1770832383486,500.0,0.00013699,2]
[405107234,1770832506707,500.0,0.00013699,2]
[405107235,1770832518292,500.0,0.00013699,2]
[405107236,1770832562941,502.08243897,0.00013699,2]
[405107237,1770832563683,168.46137547,0.00013699,2]
[405107238,1770832564102,500.0,0.00013273,2]
[405107239,1770832564142,280.02950243,0.00013821,2]
[405107240,1770832564397,500.0,0.00013273,2]
[405107241,1770832564429,500.0,0.00013821,2]
[405107242,1770832566646,452.8198059,0.00013699,2]
[405107243,1770832567321,500.0,0.00013273,2]
[405107244,1770832569906,500.0,0.00013273,2]
[405107245,1770832570470,346.22769363,0.00013699,2]
[405107246,1770832570561,507.49218995,0.00013699,2]
[405107247,1770832571334,500.0,0.00013273,2]
[405107248,1770832571395,500.0,0.00013821,2]
[405107249,1770832571464,500.0,0.00013273,2]
[405107251,1770832643636,12000.49,0.000235,2]
[405107255,1770832867433,501.3274782,0.00013699,2]
[405107256,1770832867850,381.76872298,0.00013699,2]
[405107257,1770832871471,500.0,0.00013273,2]
[405107258,1770832871505,500.0,0.00013821,2]
[405107259,1770832874566,500.0,0.00013273,2]
[405107260,1770832889740,500.0,0.00013699,2]
[405107261,1770832920411,-430.99262353,0.00024211,2]
[405107262,1770832920436,-808.0,0.00024456,2]
[405107264,1770832920464,-514.7075613,0.00024823,3]
[405107265,1770832920494,-1997.7130888,0.00025374,2]
[405107266,1770832920522,-878.48428905,0.00025407,3]
[405107267,1770832957132,1000.0,0.00013821,2]